bitfinex-derivatives/quotes_BNBF0:USTF0_20251220
["timestamp","ask_amount","ask_price","bid_price","bid_amount"]
[1766192975220,9.63282162,854.06,853.42,0.87802125]
[1766192975421,9.63282162,854.06,853.56,0.87802125]
[1766192976222,9.63282162,854.06,853.54,0.87802125]
[1766192977322,9.63282162,854.06,853.52,0.87802125]
[1766192978325,9.63282162,854.06,853.51,0.87802125]
[1766192979225,9.63282162,854.06,853.5,0.87802125]
[1766192980424,9.63282162,854.06,853.49,0.87802125]
[1766192981120,9.63282162,854.06,853.48,0.87802125]
[1766192982226,9.63282162,854.06,853.47,0.87802125]
[1766192983225,9.63282162,854.06,853.46,0.87802125]
[1766192983423,9.63282162,854.06,853.47,0.87802125]
[1766192984128,9.63282162,854.06,853.46,0.87802125]
[1766192986227,9.63282162,854.06,853.45,0.87802125]
[1766192988222,9.63282162,854.06,853.44,0.87802125]
[1766192991923,52.38615793,854.2,853.44,0.87802125]
[1766192993228,52.38615793,854.2,853.43,0.87802125]
[1766192995229,52.38615793,854.2,853.44,0.87802125]
[1766192999225,52.38615793,854.2,853.45,0.87802125]
[1766193001233,52.38615793,854.2,853.4,0.87802125]
[1766193001534,52.38615793,854.2,853.38,0.87802125]
[1766193001736,52.58993006,854.2,853.29,0.87802125]
[1766193001930,61.85831987,854.2,853.25,0.87802125]
[1766193002233,61.85831987,854.2,853.26,0.87802125]
[1766193003333,61.85831987,854.2,853.27,0.87802125]
[1766193004535,61.85831987,854.2,853.28,0.87802125]
[1766193006141,61.85831987,854.2,853.29,0.87802125]
[1766193007437,61.85831987,854.2,853.3,0.87802125]
[1766193008442,61.85831987,854.2,853.31,0.87802125]
[1766193010345,61.85831987,854.2,853.32,0.87802125]
[1766193012145,61.85831987,854.2,853.33,0.87802125]
[1766193013346,61.85831987,854.2,853.34,0.87802125]
[1766193014542,61.85831987,854.2,853.35,0.87802125]
[1766193016345,61.85831987,854.2,853.36,0.87802125]
[1766193017246,61.85831987,854.2,853.37,0.87802125]
[1766193018045,61.85831987,854.2,853.21,1.16633017]
[1766193018350,61.85831987,854.2,853.37,0.87452466]
[1766193019247,61.85831987,854.2,853.22,1.16633017]
[1766193019248,61.85831987,854.2,853.38,0.87452466]
[1766193019954,61.85831987,854.2,853.48,0.87452466]
[1766193020151,61.65454774,854.2,853.48,0.87452466]
[1766193021153,61.65454774,854.2,853.49,0.87452466]
[1766193022250,61.65454774,854.2,853.5,0.87452466]
[1766193023252,61.65454774,854.2,853.51,0.87452466]
[1766193024351,61.65454774,854.2,853.52,0.87452466]
[1766193025357,61.65454774,854.2,853.53,0.87452466]
[1766193026552,61.65454774,854.2,853.54,0.87452466]
[1766193027254,61.65454774,854.2,853.55,0.87452466]
[1766193028161,61.65454774,854.2,853.56,0.87452466]
[1766193029562,9.26838981,854.2,853.56,0.87452466]
[1766193034759,9.26838981,854.2,853.57,0.87452466]
[1766193034961,9.26838981,854.2,853.56,0.87452466]
[1766193035463,9.26838981,854.2,853.57,0.87452466]
[1766193042367,9.26838981,854.2,853.58,0.87452466]
[1766193048172,9.26838981,854.2,853.59,0.87452466]
[1766193052379,9.26838981,854.2,853.6,0.87452466]
[1766193052581,9.26838981,854.2,853.59,0.87452466]
[1766193052879,9.26838981,854.2,853.6,0.87452466]
[1766193056379,9.26838981,854.2,853.61,0.87452466]
[1766193059385,9.26838981,854.2,853.62,0.87452466]
[1766193063386,9.26838981,854.2,853.63,0.87452466]
[1766193069298,9.26838981,854.2,853.64,0.87452466]
[1766193071899,9.26838981,854.2,853.49,1.16633017]
[1766193072100,9.26838981,854.2,853.64,0.87799885]
[1766193073398,9.26838981,854.2,853.65,0.87799885]
[1766193076304,9.26838981,854.2,853.66,0.87799885]
[1766193077404,9.26838981,854.2,853.67,0.87799885]
[1766193079405,9.26838981,854.2,853.69,0.87799885]
[1766193093519,9.26838981,854.2,853.34,6.6359101]
[1766193093520,9.26838981,854.2,853.67,0.87799885]
[1766193103528,9.26838981,854.2,853.69,0.87799885]
[1766193108731,9.26838981,854.2,853.6,0.87799885]
[1766193108933,9.26838981,854.2,853.56,0.87799885]
[1766193109227,9.26838981,854.2,853.54,0.87799885]
[1766193110231,9.26838981,854.2,853.53,0.87799885]
[1766193111225,9.26838981,854.2,853.52,0.87799885]
[1766193111930,9.26838981,854.2,853.52,0.87828368]
[1766193112430,9.26838981,854.2,853.51,0.87828368]
[1766193114333,9.26838981,854.2,853.5,0.87828368]
[1766193117232,9.26838981,854.2,853.49,0.87828368]
[1766193121933,0.20374767,854.31,853.49,0.87828368]
[1766193122238,0.20374767,854.31,853.48,0.87828368]
[1766193128340,0.20374767,854.31,853.47,0.87828368]
[1766193142558,0.20374767,854.31,853.34,6.6359101]
[1766193142858,0.20374767,854.31,853.47,0.87717002]
[1766193143458,0.20374767,854.31,853.44,0.87717002]
[1766193151265,0.20374767,854.31,853.45,0.87717002]
[1766193153568,0.20374767,854.31,853.29,1.16633017]
[1766193153569,0.20374767,854.31,853.48,0.87717002]
[1766193156972,53.66088837,854.3,853.48,0.87717002]
[1766193157170,53.66088837,854.3,853.49,0.87717002]
[1766193158275,63.58932825,854.3,853.49,0.87717002]
[1766193161179,63.58932825,854.3,853.5,0.87717002]
[1766193163476,63.58932825,854.3,853.51,0.87717002]
[1766193165184,63.58932825,854.3,853.52,0.87717002]
[1766193166382,63.58932825,854.3,853.53,0.87717002]
[1766193167288,63.58932825,854.3,853.54,0.87717002]
[1766193168280,63.58932825,854.3,853.07,6.88135423]
[1766193168281,63.58932825,854.3,853.56,0.87717002]
[1766193171587,63.58932825,854.3,853.57,0.87717002]
[1766193171785,63.58932825,854.3,853.61,0.87717002]
[1766193173284,63.58932825,854.3,853.62,0.87717002]
[1766193174285,63.58932825,854.3,853.61,0.87717002]
[1766193175285,63.58932825,854.3,853.61,0.87863411]
[1766193177587,63.58932825,854.3,853.6,0.87863411]
[1766193183197,63.58932825,854.3,853.59,0.87863411]
[1766193183498,63.58932825,854.3,853.52,0.87863411]
[1766193191300,63.58932825,854.3,853.51,0.87863411]
[1766193193601,63.58932825,854.3,853.58,0.87863411]
[1766193209015,63.58932825,854.3,853.62,0.87863411]
[1766193219022,63.58932825,854.3,853.62,0.87791315]
[1766193221330,63.58932825,854.3,853.63,0.87791315]
[1766193222134,63.58932825,854.3,853.67,0.87791315]
[1766193231443,63.58932825,854.3,853.68,0.87791315]
[1766193232340,63.58932825,854.3,853.67,0.87791315]
[1766193233545,63.58932825,854.3,853.64,0.87791315]
[1766193243554,63.58932825,854.3,853.67,0.87791315]
[1766193251461,63.58932825,854.3,853.67,0.87780482]
[1766193259266,63.58932825,854.3,853.68,0.87780482]
[1766193259566,63.58932825,854.3,853.52,1.16633017]
[1766193259864,63.58932825,854.3,853.68,0.87794776]
[1766193265368,63.58932825,854.3,853.69,0.87794776]
[1766193268170,63.58932825,854.3,853.7,0.87794776]
[1766193276177,63.58932825,854.3,853.71,0.87794776]
[1766193277686,63.58932825,854.3,853.65,0.87794776]
[1766193277882,0.20374707,854.19,853.65,0.87794776]
[1766193280779,0.20374707,854.19,853.64,0.87794776]
[1766193284186,0.20374707,854.19,853.6,0.87794776]
[1766193284481,0.20374707,854.19,853.59,0.87794776]
[1766193285084,0.20374707,854.19,853.46,0.87794776]
[1766193285285,0.20374707,854.19,853.44,0.87794776]
[1766193286185,0.20374707,854.19,853.42,0.87794776]
[1766193287186,0.20374707,854.19,853.41,0.87794776]
[1766193288284,0.20374707,854.19,853.4,0.87794776]
[1766193289285,0.20374707,854.19,853.39,0.87794776]
[1766193290289,0.20374707,854.19,853.38,7.26421875]
[1766193291389,0.20374707,854.19,853.38,6.38627099]
[1766193312304,0.20374707,854.19,853.38,7.26299701]
[1766193312500,0.20374707,854.19,853.43,0.87672602]
[1766193313805,0.20374707,854.19,853.45,0.87672602]
[1766193314602,0.20374707,854.19,853.46,0.87672602]
[1766193316405,0.20374707,854.19,853.47,0.87672602]
[1766193317902,0.20374707,854.19,853.5,0.87672602]
[1766193321603,51.08848906,854.33,853.56,0.87672602]
[1766193325209,51.08848906,854.33,853.57,0.87672602]
[1766193326310,51.08848906,854.33,853.6,0.87672602]
[1766193328106,51.08848906,854.33,853.61,0.87672602]
[1766193328310,51.08848906,854.33,853.7,0.87672602]
[1766193329110,51.08848906,854.33,853.71,0.87672602]
[1766193329310,51.08848906,854.33,853.76,0.87672602]
[1766193329507,51.08848906,854.33,853.75,0.87672602]
[1766193329906,51.08848906,854.33,853.82,0.87672602]
[1766193330110,51.08848906,854.33,853.83,0.87672602]
[1766193330411,51.08848906,854.33,853.81,0.87672602]
[1766193331310,51.08848906,854.33,853.8,0.87672602]
[1766193332308,51.08848906,854.33,853.38,6.38627099]
[1766193332309,51.08848906,854.33,853.79,0.87672602]
[1766193333512,51.08848906,854.33,853.78,0.87672602]
[1766193334011,51.08848906,854.33,853.77,0.87672602]
[1766193334311,51.08848906,854.33,853.76,0.87672602]
[1766193335308,51.08848906,854.33,853.75,0.87672602]
[1766193336711,51.08848906,854.33,853.68,0.87672602]
[1766193337310,51.08848906,854.33,853.67,0.87672602]
[1766193338511,51.08848906,854.33,853.66,0.87672602]
[1766193338918,51.08848906,854.33,853.68,0.87672602]
[1766193340315,51.08848906,854.33,853.67,0.87672602]
[1766193342316,51.08848906,854.33,853.66,0.87672602]
[1766193344421,51.08848906,854.33,853.65,0.87672602]
[1766193348518,51.08848906,854.33,853.64,0.87672602]
[1766193352126,51.08848906,854.33,853.65,0.87672602]
[1766193352425,51.08848906,854.33,853.64,0.87672602]
[1766193353222,51.08848906,854.33,853.65,0.87672602]
[1766193357228,51.08848906,854.33,853.66,0.87672602]
[1766193360329,51.08848906,854.33,853.71,0.87672602]
[1766193361424,51.08848906,854.33,853.72,0.87672602]
[1766193364333,51.08848906,854.33,853.73,0.87672602]
[1766193364534,51.08848906,854.33,853.76,0.87672602]
[1766193366332,51.08848906,854.33,853.77,0.87672602]
[1766193367532,51.08848906,854.33,853.78,0.87672602]
[1766193368336,51.08848906,854.33,853.79,0.87672602]
[1766193369333,51.08848906,854.33,853.8,0.87672602]
[1766193370437,51.08848906,854.33,853.38,6.38627099]
[1766193370438,51.08848906,854.33,853.81,0.87672602]
[1766193371335,51.08848906,854.33,853.82,0.87672602]
[1766193372140,1.74937322,855.26,853.38,6.38627099]
[1766193372141,1.16624881,855.14,853.85,0.87672602]
[1766193372341,1.16624881,855.22,853.94,0.87672602]
[1766193372537,0.20363143,854.68,853.94,0.87672602]
[1766193372741,1.16624881,855.22,853.94,0.87672602]
[1766193372942,0.20362011,854.7,853.94,0.87672602]
[1766193373241,1.16624881,855.22,853.94,0.87672602]
[1766193374542,0.2036213,854.91,853.95,0.87672602]
[1766193377444,0.2036213,854.91,853.96,0.87672602]
[1766193379344,0.2036213,854.91,853.97,0.87672602]
[1766193380441,0.2036213,854.91,853.98,0.87672602]
[1766193382644,0.2036213,854.91,853.99,0.87672602]
[1766193384545,0.2036213,854.91,853.84,1.16633017]
[1766193384546,0.2036213,854.91,854.0,0.87672602]
[1766193385246,0.2036213,854.91,854.0,0.87554495]
[1766193385542,0.2036213,854.91,854.01,0.87554495]
[1766193387446,0.2036213,854.91,854.02,0.87554495]
[1766193393452,0.2036213,854.91,854.01,0.87554495]
[1766193394950,1.16624881,855.16,854.01,0.87554495]
[1766193399753,0.20360998,854.88,854.01,0.87554495]
[1766193399957,9.20422094,854.88,854.01,0.87554495]
[1766193404357,9.20422094,854.88,854.02,0.87554495]
[1766193408361,9.20422094,854.88,854.03,0.87554495]
[1766193410565,9.20422094,854.88,853.92,0.87554495]
[1766193411166,9.20422094,854.88,853.9,0.87554495]
[1766193411467,9.20422094,854.88,853.84,0.87554495]
[1766193413364,1.16624881,854.87,853.76,0.87554495]
[1766193413665,1.16624881,854.85,853.74,0.87554495]
[1766193414368,1.16624881,854.86,853.74,0.87554495]
[1766193416367,1.16624881,854.86,853.73,0.87554495]
[1766193417370,1.16624881,854.87,853.73,0.87554495]
[1766193419067,1.16624881,854.87,853.72,0.87554495]
[1766193421268,1.16624881,854.87,853.71,0.87554495]
[1766193422168,10.37046975,854.88,853.71,0.87554495]
[1766193423470,10.37046975,854.88,853.7,0.87554495]
[1766193423774,9.20422094,854.88,853.72,0.87554495]
[1766193424374,1.16624881,854.8,853.61,0.87554495]
[1766193424674,1.16624881,854.74,853.55,0.87554495]
[1766193424873,1.16624881,854.73,853.54,0.87554495]
[1766193425274,1.16624881,854.75,853.53,0.87554495]
[1766193426276,1.16624881,854.75,853.52,0.87554495]
[1766193426477,1.16624881,854.76,853.51,0.87554495]
[1766193427273,1.16624881,854.77,853.5,0.87554495]
[1766193428277,1.16624881,854.78,853.49,0.87554495]
[1766193429277,1.16624881,854.8,853.48,0.87554495]
[1766193430273,1.16624881,854.8,853.47,0.87554495]
[1766193430478,1.16624881,854.81,853.47,0.87554495]
[1766193431279,1.16624881,854.81,853.46,0.87554495]
[1766193432376,1.16624881,854.81,853.33,0.20360998]
[1766193432377,1.16624881,854.82,853.45,0.87554495]
[1766193433280,1.16624881,854.83,853.44,0.87554495]
[1766193434479,1.16624881,854.84,853.44,0.87554495]
[1766193435381,1.16624881,854.84,853.43,0.87554495]
[1766193436082,1.16624881,854.84,853.33,0.20360998]
[1766193436083,1.16624881,854.77,853.36,0.87554495]
[1766193436282,9.20422094,854.88,853.36,0.87554495]
[1766193436283,1.16624881,854.78,853.36,0.87554495]
[1766193437284,1.16624881,854.79,853.35,0.87554495]
[1766193438480,1.16624881,854.8,853.34,0.87554495]
[1766193440385,1.16624881,854.81,853.33,1.07915493]
[1766193442484,1.16624881,854.81,853.33,0.20360998]
[1766193443091,1.16624881,854.87,853.38,0.87554495]
[1766193451291,1.16624881,854.86,853.38,0.87554495]
[1766193453392,1.16624881,854.86,853.39,0.87554495]
[1766193453590,9.20422094,854.88,853.38,0.87554495]
[1766193453591,1.16624881,854.85,853.38,0.87554495]
[1766193455295,1.16624881,854.84,853.39,0.87554495]
[1766193457298,1.16624881,854.84,853.4,0.87554495]
[1766193457593,1.16624881,854.82,853.38,0.87554495]
[1766193457793,1.16624881,854.82,853.33,0.20360998]
[1766193457794,1.16624881,854.8,853.36,0.87554495]
[1766193458396,1.16624881,854.79,853.36,0.87554495]
[1766193459195,1.16624881,854.79,853.37,0.87554495]
[1766193460401,1.16624881,854.78,853.37,0.87554495]
[1766193461497,1.16624881,854.62,853.23,0.87554495]
[1766193461800,1.16624881,854.59,853.22,6.20062381]
[1766193462000,1.16624881,854.56,853.22,6.20062381]
[1766193462301,1.16624881,854.46,853.07,0.20378167]
[1766193462701,1.16624881,854.35,852.94,0.87554495]
[1766193463297,1.16624881,854.34,852.95,0.87554495]
[1766193463602,1.16624881,854.35,852.92,0.87554495]
[1766193463802,1.16624881,854.32,852.89,0.87554495]
[1766193464403,1.16624881,854.33,852.88,0.87554495]
[1766193465501,1.74937322,854.49,852.87,0.87554495]
[1766193465502,1.16624881,854.34,852.87,0.87554495]
[1766193466306,1.16624881,854.35,852.86,1.0793672]
[1766193468607,9.20422094,854.88,852.86,1.0793672]
[1766193468608,1.16624881,854.34,852.86,0.20382225]
[1766193470206,1.16624881,854.33,852.86,1.0793672]
[1766193470502,1.16624881,854.34,852.86,0.20382225]
[1766193471307,1.16624881,854.35,852.86,0.20382225]
[1766193473403,1.16624881,854.36,852.86,0.20382225]
[1766193473904,1.16624881,854.39,852.86,1.0793672]
[1766193475307,1.16624881,854.4,852.86,0.20382225]
[1766193477407,1.16624881,854.41,852.86,0.20382225]
[1766193480114,1.16624881,854.41,852.84,0.87554495]
[1766193480313,1.16624881,854.39,852.82,0.87554495]
[1766193480609,1.16624881,854.35,852.78,0.87554495]
[1766193483713,1.16624881,854.38,852.8,0.87554495]
[1766193485610,1.16624881,854.39,852.8,0.87554495]
[1766193485814,1.16624881,854.38,852.8,0.87554495]
[1766193486314,1.16624881,854.39,852.8,0.87554495]
[1766193487114,1.16624881,854.35,852.75,0.87554495]
[1766193487317,1.16624881,854.34,852.74,1.07939944]
[1766193487714,1.16624881,854.3,852.74,0.20385449]
[1766193488019,1.16624881,854.3,852.7,0.87554495]
[1766193488415,1.16624881,854.22,852.65,0.20387897]
[1766193489313,1.16624881,854.23,852.65,0.20387897]
[1766193490313,1.16624881,854.24,852.65,0.20387897]
[1766193491418,1.16624881,854.25,852.65,0.20387897]
[1766193493421,1.16624881,854.26,852.65,0.20387897]
[1766193495520,1.16624881,854.27,852.65,0.20387897]
[1766193497318,1.16624881,854.28,852.65,0.20387897]
[1766193501321,1.74937322,854.44,852.65,0.20387897]
[1766193501322,1.16624881,854.29,852.65,0.20387897]
[1766193501521,1.16624881,854.28,852.65,0.20387897]
[1766193501718,1.16624881,854.29,852.65,0.20387897]
[1766193502318,1.16624881,854.28,852.65,0.20387897]
[1766193503726,1.16624881,854.21,852.65,0.20387897]
[1766193505420,1.16624881,854.2,852.65,0.20387897]
[1766193506426,1.16624881,854.19,852.65,0.20387897]
[1766193508326,1.16624881,854.18,852.65,0.20387897]
[1766193509528,1.16624881,854.17,852.65,0.20387897]
[1766193510527,1.16624881,854.16,852.65,0.20387897]
[1766193511426,1.16624881,854.14,852.65,0.20387897]
[1766193512324,1.16624881,854.13,852.65,0.20387897]
[1766193513528,1.16624881,854.12,852.65,0.20387897]
[1766193513730,9.20422094,854.88,852.65,0.20387897]
[1766193513731,1.16624881,854.19,852.65,0.20387897]
[1766193513928,1.16624881,854.31,852.76,0.87554495]
[1766193514226,1.16624881,854.36,852.81,0.87554495]
[1766193514425,1.16624881,854.41,852.89,0.87554495]
[1766193515127,1.16624881,854.42,852.9,0.87554495]
[1766193515328,1.16624881,854.4,852.91,0.87554495]
[1766193516330,1.16624881,854.38,852.92,0.87554495]
[1766193516625,1.16624881,854.38,852.93,0.87554495]
[1766193517329,1.16624881,854.36,852.95,0.87554495]
[1766193518329,1.16624881,854.34,852.97,0.87554495]
[1766193519331,1.16624881,854.32,853.0,0.87554495]
[1766193520427,1.16624881,854.29,853.02,0.87554495]
[1766193521330,1.16624881,854.27,853.05,0.87554495]
[1766193522427,1.16624881,854.26,853.05,0.87554495]
[1766193523631,1.16624881,854.21,853.01,0.87554495]
[1766193526334,1.16624881,854.22,853.0,0.87554495]
[1766193533640,1.16624881,854.25,853.03,0.87554495]
[1766193538137,1.16624881,854.27,853.05,0.87554495]
[1766193538336,1.16624881,854.39,853.15,0.87554495]
[1766193539240,1.16624881,854.39,853.16,0.87554495]
[1766193539438,1.16624881,854.4,853.15,0.87554495]
[1766193541435,1.16624881,854.41,853.15,0.87554495]
[1766193542340,1.16624881,854.41,853.14,0.87554495]
[1766193542837,1.16624881,854.44,853.17,0.87554495]
[1766193543041,1.16624881,854.44,852.86,1.74949525]
[1766193543042,1.16624881,854.53,853.26,0.87554495]
[1766193543442,1.16624881,854.52,853.23,0.87554495]
[1766193544242,1.16624881,854.43,853.13,0.87554495]
[1766193544438,1.16624881,854.43,853.12,0.87554495]
[1766193546546,1.16624881,854.44,853.12,0.87554495]
[1766193547343,1.16624881,854.44,853.11,0.87554495]
[1766193553252,1.16624881,854.45,853.11,0.87554495]
[1766193553657,1.16624881,854.36,853.03,0.87554495]
[1766193559360,1.16624881,854.35,853.04,0.87554495]
[1766193562363,1.16624881,854.34,853.05,0.87554495]
[1766193563666,1.16624881,854.43,853.15,0.87554495]
[1766193564364,1.16624881,854.42,853.15,0.87554495]
[1766193565465,1.16624881,854.42,853.16,0.87554495]
[1766193566365,1.16624881,854.41,853.16,0.87554495]
[1766193567262,1.16624881,854.4,853.17,0.87554495]
[1766193568367,1.16624881,854.39,853.18,0.87554495]
[1766193569266,1.16624881,854.38,853.19,0.87554495]
[1766193570367,1.16624881,854.37,853.2,0.87554495]
[1766193571266,1.16624881,854.36,853.21,0.87554495]
[1766193572265,1.16624881,854.34,853.23,0.87554495]
[1766193573467,1.16624881,854.33,853.24,0.87554495]
[1766193573667,1.16624881,854.32,853.23,0.87554495]
[1766193574468,1.16624881,854.32,853.24,0.87554495]
[1766193574769,1.16624881,854.32,853.23,0.87554495]
[1766193575267,1.16624881,854.32,853.24,0.87554495]
[1766193576370,1.16624881,854.31,853.24,0.87554495]
[1766193582471,1.16624881,854.31,853.25,0.87554495]
[1766193583377,1.16624881,854.3,853.25,0.87554495]
[1766193583777,1.16624881,854.29,853.24,0.87554495]
[1766193587281,1.16624881,854.28,853.25,0.87554495]
[1766193589380,1.16624881,854.22,853.19,0.87554495]
[1766193590379,1.16624881,854.22,853.04,1.16633017]
[1766193590380,1.16624881,854.22,853.2,0.87554495]
[1766193592479,1.16624881,854.21,853.2,0.87554495]
[1766193593382,1.16624881,854.21,853.21,0.87554495]
[1766193593781,1.16624881,854.17,853.17,0.87554495]
[1766193594385,1.16624881,854.16,853.17,0.87554495]
[1766193595281,1.16624881,854.16,853.18,0.87554495]
[1766193596384,1.16624881,854.15,853.18,0.87554495]
[1766193597384,1.16624881,854.15,853.19,0.87554495]
[1766193598384,1.16624881,854.15,853.18,0.87554495]
[1766193599985,0.20381867,853.98,853.18,0.87554495]
[1766193603690,0.20381867,853.98,852.65,0.20387897]
[1766193603691,0.20381867,853.98,853.25,0.87554495]
[1766193619618,0.20381867,853.98,853.24,0.87554495]
[1766193620822,0.20381867,853.98,853.25,0.87554495]
[1766193639340,0.20381867,853.98,853.26,0.87554495]
[1766193645445,0.20381867,853.98,853.27,0.87554495]
[1766193647348,0.20381867,853.98,853.28,0.87554495]
[1766193648343,0.20381867,853.98,853.29,0.87554495]
[1766193649451,0.20381867,853.98,853.18,0.87554495]
[1766193650450,0.20381867,853.98,853.16,0.87554495]
[1766193651356,0.20381867,853.98,853.15,0.87554495]
[1766193651555,0.20381867,853.98,853.22,0.87554495]
[1766193651957,0.20381867,853.98,853.07,1.16633017]
[1766193651958,54.53049445,854.13,853.29,0.87554495]
[1766193652258,54.7342988,854.13,853.33,0.87554495]
[1766193652853,54.7342988,854.13,853.35,0.87554495]
[1766193653558,54.7342988,854.13,853.34,0.87554495]
[1766193653758,54.7342988,854.13,853.37,0.87554495]
[1766193654457,54.7342988,854.13,853.36,0.87554495]
[1766193656362,54.7342988,854.13,853.35,0.87554495]
[1766193659359,54.7342988,854.13,853.19,1.16633017]
[1766193659360,54.7342988,854.13,853.34,0.87554495]
[1766193663463,54.7342988,854.13,853.33,0.87554495]
[1766193664366,54.7342988,854.13,853.32,0.87554495]
[1766193669468,54.7342988,854.13,853.31,0.87554495]
[1766193671971,54.7342988,854.13,853.35,0.87554495]
[1766193678172,54.7342988,854.13,853.34,0.87554495]
[1766193679374,54.53049445,854.13,853.34,0.87554495]
[1766193679669,54.53049445,854.13,853.42,0.87554495]
[1766193681273,54.53049445,854.13,853.41,0.87554495]
[1766193683273,54.53049445,854.13,853.4,0.87554495]
[1766193686181,54.53049445,854.13,853.39,0.87554495]
[1766193693082,54.53049445,854.13,853.38,0.87554495]
[1766193693683,54.53049445,854.13,853.36,0.87554495]
[1766193703393,54.53049445,854.13,853.37,0.87554495]
[1766193703794,54.53049445,854.13,853.39,0.87554495]
[1766193704494,54.53049445,854.13,853.4,0.87554495]
[1766193705290,0.20380256,854.03,853.25,0.87554495]
[1766193705495,0.20380256,854.03,853.24,0.87554495]
[1766193708496,0.20380256,854.03,853.25,0.87554495]
[1766193710398,0.20380256,854.03,853.26,0.87554495]
[1766193711295,0.20380256,854.03,853.27,0.87554495]
[1766193712399,0.20380256,854.03,853.28,0.87554495]
[1766193712700,0.20380256,854.03,853.27,0.87554495]
[1766193713302,0.20380256,854.03,853.11,1.16633017]
[1766193713501,0.20380256,854.03,853.26,0.87739433]
[1766193714301,0.20380256,854.03,853.22,0.87739433]
[1766193714502,0.20380256,854.03,853.17,0.87739433]
[1766193714796,0.20380256,854.03,853.13,0.87739433]
[1766193715401,0.20380256,854.03,853.09,0.87739433]
[1766193716201,0.20380256,854.03,853.08,0.87739433]
[1766193717199,0.20380256,854.03,853.07,0.87739433]
[1766193718396,0.20380256,854.03,853.06,0.87739433]
[1766193719598,0.20380256,854.03,853.05,0.87739433]
[1766193722202,0.20380256,854.03,853.04,0.87739433]
[1766193723508,0.20380256,854.03,853.03,0.87739433]
[1766193724906,0.20380256,854.03,853.14,0.87739433]
[1766193726108,0.20380256,854.03,853.13,0.87739433]
[1766193726408,0.20380256,854.03,853.16,0.87739433]
[1766193730313,0.20380256,854.03,853.06,0.87739433]
[1766193730813,0.20380256,854.03,853.03,0.87739433]
[1766193731317,0.20380256,854.03,853.02,0.87739433]
[1766193731517,0.20380256,854.03,853.01,0.87739433]
[1766193733417,0.20380256,854.03,853.0,0.87739433]
[1766193735419,0.20380256,854.03,852.99,0.87739433]
[1766193738519,0.20380256,854.03,852.96,0.87739433]
[1766193738720,0.20380256,854.03,852.92,0.87739433]
[1766193738916,0.20380256,854.03,852.91,0.87739433]
[1766193741221,0.20380256,854.03,852.83,0.87739433]
[1766193741420,0.20380256,854.03,852.52,1.74949525]
[1766193741421,0.20380256,854.03,852.79,0.87739433]
[1766193742621,0.20380256,854.03,852.78,0.87739433]
[1766193743423,0.20380256,854.03,852.77,0.87739433]
[1766193743820,0.20380256,854.03,852.71,0.87739433]
[1766193744520,0.20380256,854.03,852.7,0.87739433]
[1766193746428,0.20380256,854.03,852.69,0.87739433]
[1766193747329,0.20380256,854.03,852.68,0.87739433]
[1766193749428,0.20380256,854.03,852.55,0.20389211]
[1766193749429,0.20380256,854.03,852.67,0.87739433]
[1766193750328,0.20380256,854.03,852.68,0.87739433]
[1766193750525,0.20380256,854.03,852.67,0.87739433]
[1766193759231,0.20380256,854.03,852.68,0.87739433]
[1766193761233,0.20380256,854.03,852.69,0.87739433]
[1766193761439,0.20380256,854.03,852.68,0.87739433]
[1766193762133,0.20380256,854.03,852.69,0.87739433]
[1766193763238,0.20380256,854.03,852.7,0.87739433]
[1766193764333,0.20380256,854.03,852.71,0.87739433]
[1766193765137,0.20380256,854.03,852.72,0.87739433]
[1766193769241,0.20380256,854.03,852.73,0.87739433]
[1766193770045,0.20380256,854.03,852.71,0.87739433]
[1766193770240,1.16624881,853.97,852.63,0.87739433]
[1766193771445,1.16624881,853.95,852.61,0.87739433]
[1766193771942,48.44184484,853.95,852.61,0.87739433]
[1766193772241,1.16624881,853.94,852.62,0.87739433]
[1766193772447,57.15221859,853.95,852.61,0.87739433]
[1766193773141,1.16624881,853.94,852.62,0.87739433]
[1766193773345,57.15221859,853.95,852.62,0.87739433]
[1766193774146,1.16624881,853.94,852.62,0.87739433]
[1766193776144,57.15221859,853.95,852.62,0.87739433]
[1766193776346,57.15221859,853.95,852.61,0.87739433]
[1766193783854,1.16624881,853.92,852.58,0.87739433]
[1766193785354,1.16624881,853.92,852.59,0.87739433]
[1766193785752,1.16624881,853.92,852.45,0.20392198]
[1766193785956,1.16624881,853.92,852.59,0.87526843]
[1766193786357,1.16624881,853.91,852.6,0.87526843]
[1766193787359,1.16624881,853.9,852.61,0.87526843]
[1766193788355,1.16624881,853.89,852.62,0.87526843]
[1766193789559,55.98596978,853.95,852.63,0.87526843]
[1766193789560,1.16624881,853.88,852.63,0.87526843]
[1766193790460,1.16624881,853.87,852.64,0.87526843]
[1766193791159,1.16624881,853.89,852.66,0.87526843]
[1766193791357,55.98596978,853.95,852.75,0.87526843]
[1766193792462,55.98596978,853.95,852.76,0.87526843]
[1766193793165,55.98596978,853.95,852.79,0.87526843]
[1766193793459,55.98596978,853.95,852.8,0.87526843]
[1766193793963,55.98596978,853.95,852.64,1.16633017]
[1766193793964,55.98596978,853.95,852.82,0.87526843]
[1766193794463,55.98596978,853.95,852.83,0.87526843]
[1766193795360,55.98596978,853.95,852.84,0.87526843]
[1766193796460,55.98596978,853.95,852.85,0.87526843]
[1766193797366,55.98596978,853.95,852.86,0.87526843]
[1766193798365,55.98596978,853.95,852.87,0.87526843]